bitfinex/quotes_SOLUSD_20260114
["timestamp","ask_amount","ask_price","bid_price","bid_amount"]
[1768397310376,4.72313852,144.64,144.59,24.20637664]
[1768397310558,10.35757066,144.65,144.59,24.20637664]
[1768397310753,4.72316341,144.64,144.59,24.20637664]
[1768397311068,10.35757066,144.65,144.59,24.20637664]
[1768397311273,4.72316618,144.64,144.59,24.20637664]
[1768397311470,10.35757066,144.65,144.59,3.44412091]
[1768397311672,4.72238032,144.64,144.59,3.44412091]
[1768397311863,10.35757066,144.65,144.59,3.44412091]
[1768397312061,4.72238032,144.64,144.59,3.44412091]
[1768397312264,10.35757066,144.65,144.59,3.44412091]
[1768397312466,10.35757066,144.65,144.6,6.91562932]
[1768397313375,1e-08,144.65,144.6,24.20470262]
[1768397313559,1e-08,144.65,144.6,27.64882353]
[1768397313766,1e-08,144.65,144.61,3.44412091]
[1768397313965,1e-08,144.65,144.6,24.20470262]
[1768397314298,1e-08,144.65,144.6,27.64882353]
[1768397314866,1e-08,144.65,144.6,10.35975023]
[1768397315074,3.44412092,144.65,144.6,6.91562932]
[1768397315381,1e-08,144.65,144.6,6.91562932]
[1768397315555,1e-08,144.65,144.62,3.44412091]
[1768397316163,1e-08,144.65,144.6,6.91562932]
[1768397316369,1e-08,144.65,144.62,3.44412091]
[1768397316572,1e-08,144.65,144.62,10.35858197]
[1768397317373,1e-08,144.65,144.62,6.91446106]
[1768397317573,1e-08,144.65,144.62,10.35858197]
[1768397318284,1e-08,144.65,144.63,3.44412091]
[1768397318486,1e-08,144.65,144.64,10.35783772]
[1768397319263,0.1,144.69,144.64,10.35783772]
[1768397319460,0.1,144.69,144.66,3.44412091]
[1768397320188,0.1,144.69,144.64,24.19800884]
[1768397320189,1e-08,144.69,144.67,3.44412091]
[1768397320361,1e-08,144.69,144.64,24.19800884]
[1768397320569,1e-08,144.69,144.65,3.44412091]
[1768397321799,1e-08,144.69,144.66,6.91276095]
[1768397324490,1e-08,144.69,144.61,34.57372403]
[1768397324693,1e-08,144.69,144.65,3.44412091]
[1768397324876,1e-08,144.69,144.61,34.57372403]
[1768397325074,3.44412092,144.69,144.63,3.44412091]
[1768397325282,1e-08,144.69,144.64,3.44412091]
[1768397325789,1e-08,144.69,144.65,3.44412091]
[1768397326296,1e-08,144.69,144.65,10.35702561]
[1768397328276,1e-08,144.69,144.61,34.57372403]
[1768397328476,1e-08,144.69,144.64,3.44412091]
[1768397329316,1e-08,144.69,144.61,34.57372403]
[1768397329492,1e-08,144.69,144.65,6.91323885]
[1768397330893,1e-08,144.69,144.65,10.35735976]
[1768397331292,1e-08,144.69,144.65,6.91323885]
[1768397333600,1e-08,144.69,144.61,34.57372403]
[1768397333781,1e-08,144.69,144.64,3.44412091]
[1768397334895,1e-08,144.69,144.65,6.91323885]
[1768397335601,3.44412091,144.68,144.62,3.44412091]
[1768397336579,3.44412091,144.68,144.63,6.91407236]
[1768397336781,6.91228312,144.67,144.63,6.91407236]
[1768397337599,10.3561505,144.68,144.63,6.91407236]
[1768397338688,3.44412091,144.67,144.62,6.91455799]
[1768397338900,6.91276095,144.66,144.62,6.91455799]
[1768397339289,10.35688186,144.66,144.62,6.91455799]
[1768397339796,6.91276095,144.66,144.62,6.91455799]
[1768397340200,10.35662088,144.67,144.61,3.44412091]
[1768397340386,6.91249997,144.67,144.62,3.44412091]
[1768397341286,10.35662088,144.67,144.62,3.81e-06]
[1768397341499,10.35662088,144.67,144.61,3.44412091]
[1768397341700,6.91249997,144.67,144.6,17.28836036]
[1768397342385,1e-08,144.69,144.6,17.28836036]
[1768397342592,102.175,144.68,144.6,17.28836036]
[1768397343804,6.91228312,144.67,144.6,17.28836036]
[1768397345710,102.175,144.68,144.6,17.28836036]
[1768397350594,1e-08,144.69,144.6,17.28836036]
[1768397356501,1e-08,144.69,144.6,58.78213629]
[1768397368117,1e-08,144.69,144.6,120.38213629]
[1768397369220,1e-08,144.69,144.6,58.78213629]
[1768397370427,1e-08,144.69,144.6,65.63977323]
[1768397371233,1e-08,144.69,144.61,6.6801107]
[1768397371429,1e-08,144.69,144.61,13.53774764]
[1768397373532,1e-08,144.69,144.62,6.91467293]
[1768397376717,1e-08,144.69,144.62,68.51467293]
[1768397377040,1e-08,144.69,144.63,6.85763694]
[1768397379350,1e-08,144.69,144.64,6.91371681]
[1768397382423,1e-08,144.69,144.64,13.59382751]
[1768397383341,0.1,144.71,144.64,13.59382751]
[1768397386033,0.1,144.71,144.64,20.45146445]
[1768397386550,0.1,144.74,144.64,20.45146445]
[1768397389253,0.1,144.74,144.67,13.59228103]
[1768397390542,0.1,144.74,144.67,21.14114628]
[1768397390742,0.1,144.74,144.69,6.91132766]
[1768397394252,0.1,144.74,144.68,6.85763694]
[1768397397038,0.1,144.74,144.67,6.6801107]
[1768397398861,0.1,144.74,144.68,6.91180536]
[1768397400241,1e-08,144.74,144.68,6.91180536]
[1768397400559,1e-08,144.76,144.72,6.6801107]
[1768397400743,0.1,144.79,144.72,6.6801107]
[1768397401561,1e-08,144.78,144.73,6.90941753]
[1768397401743,0.1,144.79,144.73,13.76705447]
[1768397402277,0.1,144.8,144.73,13.76705447]
[1768397402572,0.1,144.84,144.73,31.04059831]
[1768397406364,0.1,144.84,144.76,13.58783133]
[1768397408747,0.1,144.84,144.76,6.90772063]
[1768397409780,0.1,144.84,144.74,20.44666687]
[1768397411168,0.1,144.84,144.74,13.58902993]
[1768397411353,0.1,144.84,144.74,6.90891923]
[1768397411770,0.1,144.84,144.73,18.29177641]
[1768397411952,0.1,144.84,144.74,6.90888553]
[1768397412567,0.1,144.84,144.71,31.8817969]
[1768397413673,0.1,144.84,144.72,9.18470291]
[1768397414874,6.6801107,144.83,144.72,9.18470291]
[1768397415053,6.6801107,144.83,144.71,6.90990979]
[1768397416069,6.6801107,144.83,144.69,6.91132766]
[1768397418064,6.6801107,144.83,144.7,12.6]
[1768397420472,21.9051236,144.82,144.68,13.53774764]
[1768397420784,36.9051236,144.82,144.68,12.6]
[1768397421471,6.6801107,144.79,144.68,12.6]
[1768397421660,12.6,144.78,144.68,12.6]
[1768397422371,12.6,144.78,144.64,33.0509965]
[1768397424679,6.90750846,144.77,144.63,9.18470291]
[1768397424979,6.90750846,144.77,144.65,12.6]
[1768397425758,6.90750846,144.77,144.62,6.6801107]
[1768397425961,30.0,144.76,144.64,12.6]
[1768397426476,15.0,144.76,144.64,12.6]
[1768397427382,21.90846286,144.75,144.59,25.14941335]
[1768397427560,15.0,144.74,144.6,12.6]
[1768397427760,12.6,144.73,144.6,12.6]
[1768397428664,19.50974318,144.73,144.6,12.6]
[1768397429070,15.0,144.72,144.56,16.10223885]
[1768397429273,15.0,144.72,144.57,12.6]
[1768397430180,15.0,144.7,144.57,12.6]
[1768397430981,15.0,144.72,144.57,12.6]
[1768397432880,6.91037246,144.71,144.57,12.6]
[1768397433178,15.0,144.72,144.58,6.91658597]
[1768397433378,12.6,144.71,144.58,41.49951583]
[1768397434376,6.91037246,144.71,144.58,58.79098076]
[1768397434566,24.18630363,144.71,144.58,58.79098076]
[1768397436594,73.73816597,144.71,144.58,24.2080509]
[1768397436965,3.60712362,144.7,144.58,24.2080509]
[1768397437567,12.6,144.7,144.58,24.2080509]
[1768397438281,6.91132766,144.69,144.58,58.79098076]
[1768397441668,24.18964682,144.69,144.58,58.79098076]
[1768397443680,6.91132766,144.69,144.58,58.79098076]
[1768397443883,6.9109992,144.7,144.58,58.79098076]
[1768397446595,12.62,144.72,144.58,74.65579437]
[1768397447799,6.91037246,144.71,144.58,74.65579437]
[1768397449987,24.18630363,144.71,144.58,65.47109146]
[1768397452305,58.73816597,144.71,144.58,58.79098076]
[1768397458007,15.0,144.7,144.58,24.2080509]
[1768397459110,24.18964682,144.69,144.58,24.2080509]
[1768397461408,58.73816597,144.71,144.58,24.2080509]
[1768397461620,12.62,144.7,144.58,24.2080509]
[1768397462506,6.91132766,144.69,144.58,58.79098076]
[1768397462706,19.53102006,144.7,144.58,58.79098076]
[1768397463017,19.53032769,144.72,144.61,6.6801107]
[1768397463195,19.53032769,144.72,144.62,12.62]
[1768397463400,36.80506511,144.72,144.62,12.62]
[1768397465315,19.52941753,144.73,144.63,24.19968194]
[1768397465997,12.62,144.73,144.63,24.19968194]
[1768397466315,6.90862036,144.75,144.63,24.19968194]
[1768397466520,6.90862036,144.75,144.63,58.77065615]
[1768397467215,17.27115716,144.75,144.63,58.77065615]
[1768397467810,17.27115716,144.75,144.63,24.19968194]
[1768397468008,32.27115716,144.75,144.63,24.19968194]
[1768397468308,32.27115716,144.75,144.63,6.91419484]
[1768397468309,15.0,144.74,144.63,6.91419484]
[1768397469500,58.73004905,144.73,144.61,24.20246095]
[1768397469696,27.62,144.72,144.61,6.91515109]
[1768397471630,58.73816597,144.71,144.58,24.2080509]
[1768397471799,73.73816597,144.71,144.58,24.2080509]
[1768397472126,15.0,144.7,144.58,24.2080509]
[1768397473121,6.91132766,144.69,144.58,24.2080509]
[1768397473420,12.62,144.68,144.58,6.91658597]
[1768397474002,27.62,144.68,144.58,6.91658597]
[1768397474625,24.19299093,144.67,144.55,6.91802144]
[1768397474826,73.75440656,144.67,144.55,24.21307505]
[1768397475207,15.0,144.66,144.54,7.11836581]
[1768397475412,15.0,144.65,144.54,7.11836581]
[1768397475636,12.62,144.64,144.54,7.11836581]
[1768397476296,24.19968194,144.63,144.54,7.11836581]
[1768397476799,24.19968194,144.63,144.54,24.41461598]
[1768397477123,36.81968194,144.63,144.54,24.41461598]
[1768397478423,36.81968194,144.63,144.54,7.11836581]
[1768397480424,17.2854871,144.63,144.54,7.11836581]
[1768397480927,12.62,144.62,144.54,7.11836581]
[1768397481508,24.20302883,144.61,144.54,7.11836581]
[1768397482428,6.91515109,144.61,144.54,7.11836581]
[1768397482727,19.53515109,144.61,144.54,7.11836581]
[1768397483127,19.53515109,144.61,144.54,24.41461598]
[1768397483630,12.62,144.61,144.54,24.41461598]
[1768397484427,58.76666644,144.64,144.54,24.41461598]
[1768397484609,24.19800884,144.64,144.54,24.41461598]
[1768397488035,12.62,144.63,144.55,12.62]
[1768397488215,12.62,144.65,144.55,12.62]
[1768397489233,6.91371681,144.64,144.56,24.2114001]
[1768397490629,24.19800884,144.64,144.56,6.91754288]
[1768397492129,24.19800884,144.64,144.55,6.91786358]
[1768397493631,58.76659291,144.64,144.55,6.91786358]
[1768397496927,62.37526617,144.64,144.55,6.91786358]
[1768397497321,6.6801107,144.61,144.54,0.2]
[1768397497525,12.62,144.6,144.54,0.2]
[1768397499843,24.20637664,144.59,144.54,0.2]
[1768397500046,24.20637664,144.59,144.51,6.9197966]
[1768397500429,24.20637664,144.59,144.52,6.91935777]
[1768397500627,24.20637664,144.59,144.49,0.2]
[1768397501225,30.0,144.58,144.49,0.2]
[1768397501437,12.62,144.57,144.49,0.2]
[1768397501837,24.2114001,144.56,144.49,0.2]
[1768397502426,6.91754288,144.56,144.49,24.42300238]
[1768397502628,6.91714576,144.57,144.49,24.42300238]
[1768397503938,12.62,144.58,144.49,24.42300238]
[1768397504336,6.91562932,144.6,144.49,24.42300238]
[1768397505547,6.91562932,144.6,144.49,59.02747327]
[1768397507148,19.53528351,144.61,144.49,59.02747327]
[1768397507749,36.82316125,144.61,144.49,59.02747327]
[1768397508452,0.6785944,144.6,144.5,0.2]
[1768397509461,0.6785944,144.59,144.52,0.2]
[1768397509931,0.6785944,144.6,144.52,0.2]
[1768397510139,0.6785944,144.6,144.53,0.2]
[1768397510837,0.6785944,144.6,144.55,0.2]
[1768397512149,19.53488002,144.62,144.55,0.2]
[1768397512350,0.6877212,144.63,144.55,0.2]
[1768397513038,7.60208593,144.63,144.57,0.2]
[1768397513340,0.6877212,144.62,144.57,0.2]
[1768397513540,0.6877212,144.64,144.57,0.2]
[1768397513942,0.6877212,144.63,144.57,0.2]
[1768397515158,0.6877212,144.63,144.58,24.4080509]
[1768397515351,0.6877212,144.64,144.59,0.2]
[1768397516147,0.6877212,144.65,144.59,0.2]
[1768397517158,0.6877212,144.65,144.6,7.11562932]
[1768397518048,0.6877212,144.65,144.6,24.40470262]
[1768397518643,0.6877212,144.64,144.6,24.40470262]
[1768397519353,0.6877212,144.64,144.6,24.20470262]
[1768397520754,0.6877212,144.64,144.59,0.2]
[1768397520755,0.6877212,144.63,144.59,6.91591751]
[1768397521341,0.6877212,144.62,144.59,6.91591751]
[1768397521548,0.6877212,144.62,144.56,17.49323246]
[1768397521746,0.6877212,144.61,144.54,17.49579657]
[1768397521945,0.6877212,144.61,144.55,6.91773464]
[1768397523554,0.6877212,144.59,144.55,6.91773464]
[1768397524440,0.6877212,144.59,144.54,6.91842614]
[1768397526861,0.6877212,144.58,144.54,6.91842614]
[1768397527041,0.6877212,144.59,144.55,0.2]
[1768397527768,0.6877212,144.6,144.55,0.2]
[1768397528364,0.6877212,144.6,144.58,8.59079606]
[1768397528972,13.3077212,144.62,144.59,8.59079606]
[1768397529461,0.6877212,144.61,144.58,6.91638797]
[1768397529849,0.6877212,144.61,144.58,16.73392463]
[1768397531068,0.6877212,144.61,144.58,6.91638797]
[1768397531267,0.6877212,144.61,144.58,16.73392463]
[1768397532001,0.6877212,144.6,144.57,16.73456944]
[1768397533144,0.6877212,144.6,144.56,9.81753666]
[1768397533366,0.6877212,144.6,144.55,9.81753666]
[1768397533673,0.6877212,144.59,144.54,16.73582572]
[1768397533844,0.6877212,144.57,144.54,16.73582572]
[1768397534959,17.28787774,144.61,144.56,9.81753666]
[1768397535257,17.28787774,144.61,144.57,9.81753666]
[1768397535563,17.28787774,144.61,144.57,3.44359722]
[1768397536372,24.20302883,144.61,144.57,3.44359722]
[1768397536671,27.64662605,144.61,144.55,7.59033356]
[1768397536841,3.44359722,144.6,144.54,6.91828751]
[1768397537040,0.6877212,144.59,144.54,6.91828751]
[1768397537246,0.6877212,144.58,144.54,6.91828751]
[1768397537664,0.6877212,144.58,144.54,10.36188473]
[1768397537964,7.60451342,144.58,144.54,10.36188473]
[1768397538557,7.60451342,144.58,144.55,3.44359722]
[1768397538558,0.6877212,144.58,144.55,3.44359722]
[1768397539049,0.65772121,144.58,144.55,3.44359722]
[1768397539448,7.57454334,144.58,144.55,3.44359722]
[1768397540262,0.65772121,144.58,144.55,10.36150477]
[1768397540467,7.57433046,144.58,144.55,10.36150477]
[1768397540654,0.65772121,144.58,144.55,10.36150477]
[1768397540855,7.54433236,144.58,144.54,7.59094684]
[1768397541255,7.54433236,144.58,144.54,11.03454406]
[1768397542264,7.54433236,144.58,144.54,7.59094684]
[1768397542469,7.54433236,144.58,144.54,11.03454406]
[1768397542859,7.54433236,144.58,144.54,7.59094684]
[1768397543064,7.54433236,144.58,144.54,11.03454406]
[1768397543663,7.54433236,144.58,144.55,3.44359722]
[1768397545176,0.62772122,144.58,144.55,3.44359722]
[1768397546467,7.54432373,144.58,144.55,3.44359722]
[1768397546666,0.67532351,144.57,144.54,0.67265506]
[1768397546867,0.67532351,144.57,144.54,4.11625228]
[1768397547476,7.59265268,144.57,144.54,4.11625228]
[1768397548078,0.67532351,144.56,144.52,0.691117]
[1768397548979,0.67532351,144.54,144.5,7.61143385]
[1768397549273,0.67532351,144.54,144.5,11.05503107]
[1768397549874,0.67532351,144.54,144.5,7.61143385]
[1768397550056,0.67532351,144.54,144.5,11.05503107]
[1768397550373,7.5941262,144.54,144.5,11.05503107]
[1768397550573,7.5941262,144.54,144.5,7.61143385]
[1768397550754,7.5941262,144.54,144.5,11.05503107]
[1768397551163,0.67532351,144.54,144.5,11.05503107]
[1768397551369,7.59390148,144.54,144.5,11.05503107]
[1768397552880,7.59390148,144.54,144.5,7.61143385]
[1768397553282,7.59390148,144.54,144.5,11.05503107]
[1768397554457,7.59390148,144.54,144.5,7.61143385]
[1768397555175,7.59390148,144.54,144.5,11.05503107]
[1768397555478,0.67532351,144.54,144.51,3.44359722]
[1768397555670,0.67532351,144.55,144.51,4.13471422]
[1768397556383,7.59337877,144.55,144.51,4.13471422]
[1768397556874,7.59337877,144.55,144.51,0.691117]
[1768397557074,7.59337877,144.55,144.51,4.13471422]
[1768397557382,0.67532351,144.54,144.51,4.13471422]
[1768397557574,0.67532351,144.54,144.51,11.05458512]
[1768397558363,0.67532351,144.54,144.51,7.6109879]
[1768397558562,0.67532351,144.54,144.51,11.05458512]
[1768397559780,7.59407997,144.54,144.5,6.92036613]
[1768397559963,0.67532351,144.53,144.49,0.2]
[1768397560159,0.67532351,144.52,144.49,0.2]
[1768397560361,0.67532351,144.51,144.49,0.2]
[1768397560666,0.6490181,144.51,144.49,0.2]
[1768397561761,19.53914012,144.53,144.49,0.2]
[1768397561962,19.53914012,144.53,144.49,7.81192812]
[1768397562477,0.67532351,144.52,144.49,7.12081112]
[1768397563666,6.91914012,144.53,144.49,7.81192812]
[1768397564181,7.59446363,144.53,144.49,7.81192812]
[1768397564382,20.21419781,144.54,144.5,0.691117]
[1768397565675,7.59438443,144.53,144.5,0.691117]
[1768397566966,20.21397154,144.54,144.5,7.61136326]
[1768397567182,20.21397154,144.54,144.5,11.05496048]
[1768397567988,13.29532351,144.54,144.5,11.05496048]
[1768397569170,13.29532351,144.54,144.5,7.61136326]
[1768397570283,20.21382885,144.54,144.5,7.61136326]
[1768397571870,13.29532351,144.54,144.5,7.61136326]
[1768397572086,0.67532351,144.54,144.5,7.61136326]
[1768397572285,0.66623133,144.56,144.52,4.15931027]
[1768397572477,0.66623133,144.56,144.53,4.15931027]
[1768397572882,7.58355745,144.57,144.53,4.15931027]
[1768397573186,0.66623133,144.56,144.53,0.71571305]
[1768397573893,0.66623133,144.56,144.53,7.63450208]
[1768397575669,0.66623133,144.56,144.53,11.0780993]
[1768397579589,0.66623133,144.56,144.53,7.63450208]
[1768397579780,0.66623133,144.56,144.53,11.0780993]
[1768397580488,13.28623133,144.58,144.55,4.15931027]
[1768397580786,17.28975861,144.6,144.53,6.91878903]
[1768397580787,0.66623133,144.6,144.57,3.44359722]
[1768397580989,0.66623133,144.6,144.57,3.40989553]
[1768397581182,0.66623133,144.6,144.56,4.15931027]
[1768397581775,0.66623133,144.6,144.56,11.07658057]
[1768397582480,7.58207525,144.6,144.56,11.07658057]
[1768397582682,7.58207525,144.6,144.56,7.63298335]
[1768397582976,7.58207525,144.6,144.56,11.07658057]
[1768397585474,0.66623133,144.63,144.59,4.15931027]
[1768397585673,0.66623133,144.63,144.6,3.44359722]
[1768397585994,0.66623133,144.63,144.59,4.15931027]
[1768397586490,7.58042617,144.63,144.59,4.15931027]
[1768397586999,0.66623133,144.65,144.6,0.71571305]
[1768397587192,7.57851445,144.67,144.62,0.71571305]
[1768397587376,7.57851445,144.67,144.63,0.71571305]
[1768397587783,0.66623133,144.66,144.61,3.44359722]
[1768397587985,7.57851445,144.67,144.63,4.15931027]
[1768397589299,7.57851445,144.67,144.63,0.71571305]
[1768397589507,7.57851445,144.67,144.63,4.15931027]
[1768397589996,0.66623133,144.66,144.61,11.07417532]
[1768397590388,4.10982855,144.66,144.61,0.71571305]
[1768397590596,0.66623133,144.65,144.6,11.0749285]
[1768397590778,0.66623133,144.65,144.6,4.15931027]
[1768397590975,0.66623133,144.65,144.59,6.91597572]
[1768397591179,0.66623133,144.64,144.59,10.35957294]
[1768397591400,0.66623133,144.64,144.59,9.11900943]
[1768397591598,0.66623133,144.64,144.59,6.91597572]
[1768397591783,0.66623133,144.64,144.59,9.11900943]
[1768397591986,7.57996869,144.64,144.6,2.20303371]
[1768397592186,0.66623133,144.64,144.61,2.20303371]
[1768397592703,7.58005101,144.64,144.61,2.20303371]
[1768397593198,7.58005101,144.64,144.6,2.91874676]
[1768397593499,0.66623133,144.63,144.6,2.20303371]
[1768397593700,0.66623133,144.63,144.58,0.71571305]
[1768397593904,0.66623133,144.62,144.58,0.71571305]
[1768397594104,7.581115,144.62,144.58,9.83531002]
[1768397596001,0.66623133,144.64,144.61,2.20303371]
[1768397596201,0.66623133,144.64,144.6,0.71571305]
[1768397596502,0.66623133,144.64,144.6,2.91874676]
[1768397596907,0.66623133,144.64,144.6,0.71571305]
[1768397597093,0.66623133,144.64,144.6,2.91874676]
[1768397597695,7.57947018,144.65,144.61,2.91874676]
[1768397597879,0.66623133,144.65,144.61,2.91874676]
[1768397598085,0.66623133,144.65,144.61,2.85874676]
[1768397598286,0.66623133,144.65,144.62,2.91874676]
[1768397598609,7.57871054,144.67,144.62,2.91874676]
[1768397598789,0.66623133,144.66,144.62,2.91874676]
[1768397599189,2.86926504,144.64,144.59,7.63172301]
[1768397599389,0.66623133,144.63,144.59,0.71571305]
[1768397599985,7.58062388,144.63,144.59,7.63169101]
[1768397600205,7.58062388,144.63,144.59,9.83472472]
[1768397602021,6.91371681,144.64,144.6,0.72153303]
[1768397602201,6.91371681,144.64,144.61,0.72153303]
[1768397602506,7.56163357,144.64,144.61,0.72153303]
[1768397602710,7.56163357,144.64,144.6,0.72153303]
[1768397604712,7.62050002,144.63,144.59,9.8405447]
[1768397605223,19.48646069,144.65,144.55,12.62]
[1768397605224,6.91368452,144.65,144.62,0.72153303]
[1768397605595,7.62019655,144.65,144.62,0.72153303]
[1768397605917,7.62019655,144.65,144.6,9.83993395]
[1768397607310,7.56196457,144.64,144.6,0.72153303]
[1768397607503,2.90895979,144.63,144.58,0.72153303]
[1768397607705,0.64849685,144.62,144.58,0.72153303]
[1768397608110,0.6490654,144.6,144.56,0.72153303]
[1768397608430,0.6490654,144.6,144.56,9.84196263]
[1768397609892,7.56483402,144.6,144.56,9.84196263]
[1768397610910,7.56483402,144.6,144.56,8.71095091]
[1768397611108,7.56483402,144.6,144.54,17.29576955]
[1768397611305,7.56483402,144.6,144.56,2.20303371]
[1768397611489,6.91530121,144.61,144.54,17.29576955]
[1768397611814,7.62241109,144.61,144.58,2.20303371]
[1768397612615,7.62241109,144.61,144.57,2.20303371]
[1768397613012,7.62241109,144.61,144.57,9.84154342]
[1768397613311,0.70710988,144.64,144.6,2.92456674]
[1768397613512,0.70710988,144.64,144.61,2.20303371]
[1768397614312,7.62102957,144.64,144.61,2.20303371]
[1768397614545,7.62102957,144.64,144.6,9.11833916]
[1768397614716,0.70710988,144.64,144.6,2.20303371]
[1768397614920,7.61987083,144.66,144.57,12.62]
[1768397615214,0.70710988,144.69,144.57,19.3001107]
[1768397615411,0.70710988,144.69,144.61,0.19596053]
[1768397615618,0.70710988,144.69,144.67,2.20303371]
[1768397616520,0.70710988,144.69,144.65,6.91301373]
[1768397616712,0.70710988,144.69,144.65,9.11604744]
[1768397617092,0.70710988,144.68,144.65,2.20303371]
[1768397617290,0.70710988,144.68,144.64,9.11661811]
[1768397617897,0.70710988,144.68,144.64,2.20303371]
[1768397618099,0.70710988,144.68,144.63,2.20303371]
[1768397618609,0.70710988,144.66,144.63,2.20303371]
[1768397621324,7.62003531,144.66,144.63,2.20303371]
[1768397622322,7.62003531,144.66,144.62,6.91448644]
[1768397622527,0.70710988,144.65,144.62,9.11752015]
[1768397622733,0.70710988,144.65,144.62,6.91448644]
[1768397622934,0.70710988,144.65,144.61,12.62]
[1768397623135,0.70710988,144.65,144.6,2.20303371]
[1768397623508,0.70710988,144.65,144.61,2.20303371]
[1768397624105,0.70710988,144.65,144.62,2.20303371]
[1768397624512,0.70710988,144.65,144.62,9.1173404]
[1768397625324,0.70710988,144.65,144.62,6.91430669]
[1768397625506,0.70710988,144.65,144.62,9.1173404]
[1768397627040,0.70710988,144.64,144.61,9.11805805]
[1768397627405,0.70710988,144.64,144.58,12.81596053]
[1768397627600,0.70710988,144.64,144.58,19.53644468]
[1768397627800,0.70710988,144.63,144.58,6.91644468]
[1768397628005,0.70710988,144.63,144.59,9.11912561]
[1768397628709,0.70710988,144.62,144.59,9.11912561]
[1768397629103,0.70710988,144.62,144.59,2.20303371]
[1768397629618,0.70710988,144.62,144.58,9.31536302]
[1768397631518,0.70710988,144.62,144.59,2.20303371]
[1768397633630,0.65542407,144.64,144.6,2.39899424]
[1768397634019,0.65542407,144.64,144.61,2.20303371]
[1768397637237,0.65542407,144.64,144.61,9.11812283]
[1768397637839,7.56891822,144.65,144.61,9.31408336]
[1768397638717,7.56891822,144.65,144.61,7.11104965]
[1768397639138,7.56891822,144.65,144.61,9.31408336]
[1768397639736,0.65542407,144.65,144.62,2.20303371]
[1768397640334,20.18856846,144.66,144.62,2.39899424]
[1768397640527,7.56856846,144.66,144.62,2.39899424]
[1768397641516,7.56856846,144.66,144.62,9.31361434]
[1768397641714,7.56856846,144.66,144.62,0.19596053]
[1768397643324,0.65542407,144.65,144.61,7.11089111]
[1768397643921,6.91371681,144.64,144.61,7.11089111]
[1768397644420,7.56914088,144.64,144.6,7.11149409]
[1768397644820,0.65542407,144.63,144.58,0.19596053]
[1768397645135,0.65542407,144.63,144.58,9.31528695]
[1768397645445,0.65542407,144.63,144.59,6.91609338]
[1768397645829,7.56979587,144.63,144.59,6.91609338]
[1768397646942,7.56979587,144.63,144.58,9.31537933]
[1768397647326,7.56979587,144.63,144.58,7.11234562]
[1768397647533,7.56979587,144.63,144.58,9.31537933]
[1768397648220,7.56979587,144.63,144.58,7.11234562]
[1768397648524,7.56979587,144.63,144.58,9.31537933]
[1768397650242,7.56979587,144.63,144.59,7.11200146]
[1768397650539,0.65542407,144.63,144.59,9.31503517]
[1768397650742,6.91392812,144.64,144.6,0.19596053]
[1768397650947,7.56935219,144.64,144.6,0.19596053]
[1768397651239,0.65542407,144.63,144.6,0.19596053]
[1768397651450,0.65542407,144.63,144.59,10.55408883]
[1768397652322,7.57004886,144.63,144.59,7.11200146]
[1768397654245,0.65542407,144.62,144.59,6.91604093]
[1768397654454,7.57014853,144.62,144.58,10.55451602]
[1768397654638,7.57014853,144.62,144.58,7.11242865]
[1768397657251,7.57014853,144.62,144.58,10.55451602]
[1768397657448,7.57014853,144.62,144.59,3.44208737]
[1768397658455,0.65542407,144.63,144.59,3.6380479]
[1768397659049,0.65542407,144.63,144.58,7.11242865]
[1768397659248,0.65542407,144.63,144.59,3.44208737]
[1768397659653,0.65542407,144.63,144.59,10.35812663]
[1768397659951,0.65542407,144.63,144.6,0.19596053]
[1768397660353,0.65542407,144.63,144.59,10.55408716]
[1768397662061,7.56968557,144.63,144.59,10.55408716]
[1768397662847,7.56968557,144.63,144.59,7.11199979]
[1768397663237,7.57697697,144.65,144.62,0.19596053]
[1768397663452,7.57697697,144.65,144.61,3.6380479]
[1768397664257,24.85746547,144.67,144.63,0.19596053]
[1768397664571,0.66373812,144.66,144.61,10.35682832]
[1768397664750,0.66373812,144.66,144.61,6.91474095]
[1768397665348,7.57697697,144.65,144.61,6.91474095]
[1768397665859,0.66373812,144.64,144.61,6.91474095]
[1768397666056,0.66373812,144.64,144.6,6.91542153]
[1768397666261,0.66373812,144.64,144.6,10.3575089]
[1768397666461,0.66373812,144.64,144.6,10.55346943]
[1768397668777,0.66373812,144.64,144.61,10.35711182]
[1768397670064,0.66373812,144.64,144.61,6.91502445]
[1768397670267,0.66373812,144.64,144.61,10.35711182]
[1768397672871,0.66373812,144.66,144.62,0.19596053]
[1768397673063,0.66373812,144.66,144.62,3.6380479]
[1768397673470,0.66373812,144.65,144.61,7.11098498]
[1768397673668,0.66373812,144.65,144.61,10.55307235]
[1768397673866,0.66373812,144.65,144.61,7.11098498]
[1768397674168,0.66373812,144.63,144.59,0.19596053]